[Event "*** Titled Tuesday Blitz"]
[Site "Chess.com"]
[Date "2021.04.27"]
[Round "11"]
[White "Mikhal867"]
[Black "azikom"]
[Result "0-1"]
[WhiteElo "2469"]
[BlackElo "2662"]
[TimeControl "180+1"]
[EndTime "12:05:54 PDT"]
[Termination "azikom won on time"]

1. c4 {[%clk 0:02:54.6]} 1... e6 {[%clk 0:02:59.6]} 2. g3 {[%clk 0:02:53.6]}
2... d5 {[%clk 0:03:00.3]} 3. Bg2 {[%clk 0:02:52.8]} 3... Nf6 {[%clk 0:03:00.4]}
4. Nf3 {[%clk 0:02:52.7]} 4... Be7 {[%clk 0:02:58.9]} 5. O-O {[%clk 0:02:52.6]}
5... O-O {[%clk 0:02:59.4]} 6. b3 {[%clk 0:02:51.5]} 6... d4 {[%clk 0:02:48.3]}
7. e3 {[%clk 0:02:50.2]} 7... Nc6 {[%clk 0:02:44.2]} 8. Bb2 {[%clk 0:02:43.9]}
8... e5 {[%clk 0:02:43.5]} 9. exd4 {[%clk 0:02:37.6]} 9... exd4 {[%clk
0:02:43.5]} 10. a3 {[%clk 0:02:32]} 10... a5 {[%clk 0:02:43]} 11. d3 {[%clk
0:02:26.5]} 11... Bc5 {[%clk 0:02:40.9]} 12. Nbd2 {[%clk 0:02:17]} 12... Bf5
{[%clk 0:02:40.1]} 13. Qc2 {[%clk 0:02:15.5]} 13... h6 {[%clk 0:02:39.7]} 14.
Nh4 {[%clk 0:02:08.8]} 14... Bh7 {[%clk 0:02:33.7]} 15. Rfe1 {[%clk 0:02:08.3]}
15... Re8 {[%clk 0:02:32.1]} 16. h3 {[%clk 0:02:00.2]} 16... Qd7 {[%clk
0:02:28.8]} 17. Kh2 {[%clk 0:01:59.3]} 17... Rad8 {[%clk 0:02:09.8]} 18. b4
{[%clk 0:01:41.7]} 18... axb4 {[%clk 0:02:07.4]} 19. Nb3 {[%clk 0:01:41.7]}
19... Bf8 {[%clk 0:01:59.9]} 20. Rxe8 {[%clk 0:01:28.3]} 20... Qxe8 {[%clk
0:01:57.9]} 21. Nf3 {[%clk 0:01:25.2]} 21... bxa3 {[%clk 0:01:52.3]} 22. Bxa3
{[%clk 0:01:25.2]} 22... Bxa3 {[%clk 0:01:48.6]} 23. Rxa3 {[%clk 0:01:24.8]}
23... Nb4 {[%clk 0:01:30]} 24. Qd2 {[%clk 0:01:24.4]} 24... Nxd3 {[%clk
0:01:28.6]} 25. Nbxd4 {[%clk 0:01:24]} 25... c5 {[%clk 0:01:06.2]} 26. Nb5
{[%clk 0:01:23.2]} 26... Ne4 {[%clk 0:01:01.1]} 27. Qa5 {[%clk 0:00:55.7]} 27...
Ndxf2 {[%clk 0:00:53.2]} 28. Nc7 {[%clk 0:00:55.4]} 28... Qe7 {[%clk 0:00:50.3]}
29. Nd5 {[%clk 0:00:42.8]} 29... Qd6 {[%clk 0:00:49.9]} 30. Nd2 {[%clk
0:00:36.1]} 30... Nxd2 {[%clk 0:00:29.8]} 31. Qxd2 {[%clk 0:00:34.8]} 31... Ne4
{[%clk 0:00:28.7]} 32. Qe3 {[%clk 0:00:30.8]} 32... Ng5 {[%clk 0:00:21.7]} 33.
Ra7 {[%clk 0:00:24.5]} 33... Ne6 {[%clk 0:00:14.5]} 34. Rxb7 {[%clk 0:00:20.6]}
34... Bg6 {[%clk 0:00:13.3]} 35. Ne7+ {[%clk 0:00:17.9]} 35... Kh7 {[%clk
0:00:12.9]} 36. Nd5 {[%clk 0:00:15.6]} 36... Ng5 {[%clk 0:00:10.3]} 37. Rb6
{[%clk 0:00:14.9]} 37... Qf8 {[%clk 0:00:08.9]} 38. h4 {[%clk 0:00:14.2]} 38...
Ne6 {[%clk 0:00:08.4]} 39. Rxe6 {[%clk 0:00:11.9]} 39... fxe6 {[%clk 0:00:07.9]}
40. Nf4 {[%clk 0:00:12.4]} 40... Bf5 {[%clk 0:00:07.4]} 41. Nxe6 {[%clk
0:00:11.8]} 41... Bxe6 {[%clk 0:00:07]} 42. Qxe6 {[%clk 0:00:11.7]} 42... Qd6
{[%clk 0:00:07.1]} 43. Qf5+ {[%clk 0:00:11.3]} 43... Kh8 {[%clk 0:00:07.3]} 44.
Be4 {[%clk 0:00:11.2]} 44... g6 {[%clk 0:00:06.9]} 45. Qxg6 {[%clk 0:00:11.2]}
45... Qxg6 {[%clk 0:00:06.6]} 46. Bxg6 {[%clk 0:00:11.3]} 46... Kg7 {[%clk
0:00:06.9]} 47. Be4 {[%clk 0:00:10.7]} 47... Rd4 {[%clk 0:00:06.8]} 48. Bd5
{[%clk 0:00:08.2]} 48... Kf6 {[%clk 0:00:06.8]} 49. Bg8 {[%clk 0:00:07.3]} 49...
Kf5 {[%clk 0:00:05.9]} 50. Kh3 {[%clk 0:00:06.7]} 50... Rd1 {[%clk 0:00:05.5]}
51. Bf7 {[%clk 0:00:06.3]} 51... Kf6 {[%clk 0:00:05.1]} 52. Bg8 {[%clk
0:00:06.2]} 52... Rd4 {[%clk 0:00:04.7]} 53. Kg2 {[%clk 0:00:05.1]} 53... Kf5
{[%clk 0:00:04.7]} 54. Kh3 {[%clk 0:00:05.1]} 54... Rd2 {[%clk 0:00:04.6]} 55.
Bf7 {[%clk 0:00:05.3]} 55... Kf6 {[%clk 0:00:04.5]} 56. Bg8 {[%clk 0:00:05.3]}
56... Ke5 {[%clk 0:00:05.1]} 57. Kg4 {[%clk 0:00:05.2]} 57... Rd4+ {[%clk
0:00:04.4]} 58. Kh5 {[%clk 0:00:05.2]} 58... Kf6 {[%clk 0:00:04.4]} 59. Kxh6
{[%clk 0:00:05]} 59... Rg4 {[%clk 0:00:04.5]} 60. Bd5 {[%clk 0:00:05.3]} 60...
Rxg3 {[%clk 0:00:04.6]} 61. h5 {[%clk 0:00:05.4]} 61... Rg5 {[%clk 0:00:04.7]}
62. Be4 {[%clk 0:00:04.5]} 62... Rg4 {[%clk 0:00:04.3]} 63. Bd5 {[%clk
0:00:04.1]} 63... Rh4 {[%clk 0:00:04.5]} 64. Bg8 {[%clk 0:00:02.1]} 64... Rh2
{[%clk 0:00:03.6]} 65. Bd5 {[%clk 0:00:01.2]} 65... Rd2 {[%clk 0:00:03.2]} 66.
Bg8 {[%clk 0:00:01.2]} 66... Rd6 {[%clk 0:00:02.4]} 0-1

[Event "*** Titled Tuesday Blitz"]
[Site "Chess.com"]
[Date "2021.04.27"]
[Round "11"]
[White "poppy73"]
[Black "A-S-00"]
[Result "0-1"]
[WhiteElo "2185"]
[BlackElo "2327"]
[TimeControl "180+1"]
[EndTime "12:06:11 PDT"]
[Termination "A-S-00 won by checkmate"]

1. e4 {[%clk 0:03:00.9]} 1... c5 {[%clk 0:02:58.2]} 2. Nf3 {[%clk 0:02:58.9]}
2... Nc6 {[%clk 0:02:57.6]} 3. d4 {[%clk 0:02:59.4]} 3... cxd4 {[%clk
0:02:58.2]} 4. Nxd4 {[%clk 0:02:59.9]} 4... Nf6 {[%clk 0:02:58.9]} 5. Nc3 {[%clk
0:02:59.3]} 5... e6 {[%clk 0:02:59.5]} 6. Ndb5 {[%clk 0:02:47.3]} 6... Bb4
{[%clk 0:02:58.8]} 7. Nd6+ {[%clk 0:02:45.3]} 7... Ke7 {[%clk 0:02:57.5]} 8. Bf4
{[%clk 0:02:01.3]} 8... e5 {[%clk 0:02:52.2]} 9. Nf5+ {[%clk 0:01:57.9]} 9...
Kf8 {[%clk 0:02:49.4]} 10. Bg5 {[%clk 0:01:54.3]} 10... d5 {[%clk 0:02:38.3]}
11. Bxf6 {[%clk 0:01:37.6]} 11... Qxf6 {[%clk 0:02:06.1]} 12. Qxd5 {[%clk
0:01:34.1]} 12... Bxf5 {[%clk 0:01:59.6]} 13. exf5 {[%clk 0:01:33.8]} 13... Rd8
{[%clk 0:01:41]} 14. Qe4 {[%clk 0:01:04.9]} 14... Rd4 {[%clk 0:01:21.1]} 15. Qe3
{[%clk 0:01:04.4]} 15... Qxf5 {[%clk 0:01:10.4]} 16. Bd3 {[%clk 0:01:03.4]}
16... Qd7 {[%clk 0:00:52.7]} 17. O-O {[%clk 0:00:56]} 17... h5 {[%clk
0:00:47.9]} 18. Ne2 {[%clk 0:00:49.6]} 18... Rd6 {[%clk 0:00:40.3]} 19. Rad1
{[%clk 0:00:44.8]} 19... Rhh6 {[%clk 0:00:35]} 20. Ng3 {[%clk 0:00:41.1]} 20...
Nd4 {[%clk 0:00:20.3]} 21. c3 {[%clk 0:00:37.9]} 21... Bc5 {[%clk 0:00:19.5]}
22. cxd4 {[%clk 0:00:35.5]} 22... Bxd4 {[%clk 0:00:19.7]} 23. Qe2 {[%clk
0:00:32.6]} 23... g6 {[%clk 0:00:19.9]} 24. Bb5 {[%clk 0:00:20.5]} 24... Qe7
{[%clk 0:00:19]} 25. Ne4 {[%clk 0:00:14.3]} 25... Rb6 {[%clk 0:00:18.7]} 26. b3
{[%clk 0:00:09.7]} 26... Kg7 {[%clk 0:00:18.3]} 27. Bc4 {[%clk 0:00:09.5]} 27...
f5 {[%clk 0:00:17.9]} 28. Ng3 {[%clk 0:00:07.9]} 28... Rd6 {[%clk 0:00:17.9]}
29. Rfe1 {[%clk 0:00:07.4]} 29... h4 {[%clk 0:00:17.2]} 30. Nf1 {[%clk 0:00:07]}
30... g5 {[%clk 0:00:15.9]} 31. h3 {[%clk 0:00:06.4]} 31... Rhg6 {[%clk
0:00:12.8]} 32. Nh2 {[%clk 0:00:06.2]} 32... Qf6 {[%clk 0:00:12.3]} 33. Nf3
{[%clk 0:00:05.8]} 33... g4 {[%clk 0:00:10.9]} 34. Nxd4 {[%clk 0:00:05.6]} 34...
exd4 {[%clk 0:00:11.1]} 35. hxg4 {[%clk 0:00:05.3]} 35... Rxg4 {[%clk
0:00:10.4]} 36. Qe7+ {[%clk 0:00:05.5]} 36... Qxe7 {[%clk 0:00:10.6]} 37. Rxe7+
{[%clk 0:00:05.4]} 37... Kf6 {[%clk 0:00:09.9]} 38. Rf7+ {[%clk 0:00:05]} 38...
Kg6 {[%clk 0:00:09.5]} 39. Rxb7 {[%clk 0:00:04.1]} 39... h3 {[%clk 0:00:08.6]}
40. g3 {[%clk 0:00:03.5]} 40... f4 {[%clk 0:00:06.5]} 41. Bd3+ {[%clk
0:00:03.6]} 41... Kf6 {[%clk 0:00:06]} 42. Be2 {[%clk 0:00:02.9]} 42... Rg5
{[%clk 0:00:05.8]} 43. g4 {[%clk 0:00:03]} 43... f3 {[%clk 0:00:04.1]} 44. Bxf3
{[%clk 0:00:02.7]} 44... d3 {[%clk 0:00:04.8]} 45. Rxa7 {[%clk 0:00:01.2]} 45...
Rd4 {[%clk 0:00:05.4]} 46. Ra6+ {[%clk 0:00:01.2]} 46... Ke7 {[%clk 0:00:04.9]}
47. Ra7+ {[%clk 0:00:01.2]} 47... Kd6 {[%clk 0:00:05.5]} 48. Ra8 {[%clk
0:00:02.1]} 48... Kc5 {[%clk 0:00:05.3]} 49. Rd8 {[%clk 0:00:03]} 49... Rxd8
{[%clk 0:00:03.7]} 50. Rc1+ {[%clk 0:00:03.9]} 50... Kd4 {[%clk 0:00:03]} 51.
Rc4+ {[%clk 0:00:04.3]} 51... Ke5 {[%clk 0:00:03.6]} 52. Re4+ {[%clk 0:00:05.1]}
52... Kf6 {[%clk 0:00:04.1]} 53. Re1 {[%clk 0:00:06]} 53... d2 {[%clk
0:00:04.2]} 54. Rd1 {[%clk 0:00:06.9]} 54... Rd4 {[%clk 0:00:03.7]} 55. Kh2
{[%clk 0:00:07.8]} 55... Rc5 {[%clk 0:00:04.1]} 56. a4 {[%clk 0:00:08.3]} 56...
Rc1 {[%clk 0:00:04.4]} 57. Rxd2 {[%clk 0:00:09.2]} 57... Rxd2 {[%clk 0:00:04.6]}
58. Kg3 {[%clk 0:00:10.1]} 58... Rcc2 {[%clk 0:00:04.5]} 59. Kxh3 {[%clk
0:00:09.5]} 59... Rxf2 {[%clk 0:00:04.9]} 60. Kg3 {[%clk 0:00:10.4]} 60... Rb2
{[%clk 0:00:04.2]} 61. Be4 {[%clk 0:00:10.4]} 61... Rfd2 {[%clk 0:00:04.5]} 62.
Bf3 {[%clk 0:00:10.2]} 62... Rxb3 {[%clk 0:00:04.9]} 63. a5 {[%clk 0:00:10.4]}
63... Rdd3 {[%clk 0:00:05]} 64. a6 {[%clk 0:00:11.3]} 64... Rxf3+ {[%clk
0:00:04.7]} 65. Kh4 {[%clk 0:00:12.2]} 65... Ra3 {[%clk 0:00:03.1]} 66. g5+
{[%clk 0:00:12.2]} 66... Kg7 {[%clk 0:00:03.6]} 67. a7 {[%clk 0:00:12.9]} 67...
Rfb3 {[%clk 0:00:03.8]} 68. a8=Q {[%clk 0:00:11.5]} 68... Rxa8 {[%clk
0:00:04.2]} 69. Kg4 {[%clk 0:00:11.5]} 69... Ra4+ {[%clk 0:00:04.6]} 70. Kh5
{[%clk 0:00:11.6]} 70... Rh3# {[%clk 0:00:05.1]} 0-1

[Event "*** Titled Tuesday Blitz"]
[Site "Chess.com"]
[Date "2021.04.27"]
[Round "11"]
[White "ChampStan"]
[Black "davidkalashian"]
[Result "0-1"]
[WhiteElo "2167"]
[BlackElo "2586"]
[TimeControl "180+1"]
[EndTime "12:06:44 PDT"]
[Termination "davidkalashian won on time"]

1. e4 {[%clk 0:03:00.9]} 1... c6 {[%clk 0:02:57.8]} 2. d4 {[%clk 0:02:48]} 2...
g6 {[%clk 0:02:58.7]} 3. Nf3 {[%clk 0:02:44.3]} 3... Bg7 {[%clk 0:02:58.1]} 4.
Nc3 {[%clk 0:02:44.2]} 4... d6 {[%clk 0:02:57.6]} 5. h3 {[%clk 0:02:44]} 5...
Nf6 {[%clk 0:02:57]} 6. Be2 {[%clk 0:02:43.6]} 6... O-O {[%clk 0:02:56.5]} 7. a4
{[%clk 0:02:44.1]} 7... Nbd7 {[%clk 0:02:56.4]} 8. O-O {[%clk 0:02:43.4]} 8...
e5 {[%clk 0:02:56.2]} 9. dxe5 {[%clk 0:02:43.7]} 9... dxe5 {[%clk 0:02:56.2]}
10. Be3 {[%clk 0:02:43.4]} 10... Qe7 {[%clk 0:02:55.7]} 11. Qd2 {[%clk
0:02:10.5]} 11... Nc5 {[%clk 0:02:55.1]} 12. Bg5 {[%clk 0:02:04.6]} 12... Re8
{[%clk 0:02:49.6]} 13. Rad1 {[%clk 0:02:01.6]} 13... Ne6 {[%clk 0:02:29.1]} 14.
Be3 {[%clk 0:01:57.9]} 14... Nc5 {[%clk 0:02:23.3]} 15. Bg5 {[%clk 0:01:55.6]}
15... Ne6 {[%clk 0:02:22.8]} 16. Be3 {[%clk 0:01:55.2]} 16... Nh5 {[%clk
0:02:11.9]} 17. g3 {[%clk 0:01:36.9]} 17... Rd8 {[%clk 0:02:01.3]} 18. Qc1
{[%clk 0:01:33.2]} 18... Nd4 {[%clk 0:02:00.1]} 19. Kg2 {[%clk 0:00:45.4]} 19...
Nxe2 {[%clk 0:01:55.7]} 20. Nxe2 {[%clk 0:00:44.1]} 20... b6 {[%clk 0:01:50.8]}
21. Rxd8+ {[%clk 0:00:39.8]} 21... Qxd8 {[%clk 0:01:51.7]} 22. Rd1 {[%clk
0:00:39.7]} 22... Qe7 {[%clk 0:01:51.8]} 23. b3 {[%clk 0:00:33]} 23... Ba6
{[%clk 0:01:44.3]} 24. c4 {[%clk 0:00:32.8]} 24... Rd8 {[%clk 0:01:42]} 25. Rd2
{[%clk 0:00:25.5]} 25... Bc8 {[%clk 0:01:41]} 26. Qd1 {[%clk 0:00:23.9]} 26...
Rxd2 {[%clk 0:01:40.1]} 27. Qxd2 {[%clk 0:00:24.8]} 27... Nf6 {[%clk 0:01:38.7]}
28. Nc3 {[%clk 0:00:21.6]} 28... Qd7 {[%clk 0:01:32]} 29. Qxd7 {[%clk
0:00:17.1]} 29... Nxd7 {[%clk 0:01:32.9]} 30. Ne1 {[%clk 0:00:14.3]} 30... Bf8
{[%clk 0:01:31.2]} 31. Nd3 {[%clk 0:00:14.8]} 31... f6 {[%clk 0:01:31.2]} 32.
Kf3 {[%clk 0:00:14.4]} 32... Kf7 {[%clk 0:01:30.9]} 33. h4 {[%clk 0:00:14.4]}
33... h5 {[%clk 0:01:29.7]} 34. Ke2 {[%clk 0:00:14.1]} 34... Nb8 {[%clk
0:01:25.7]} 35. f4 {[%clk 0:00:13.2]} 35... exf4 {[%clk 0:01:22.2]} 36. gxf4
{[%clk 0:00:14.1]} 36... Na6 {[%clk 0:01:22]} 37. Bd4 {[%clk 0:00:11.8]} 37...
Nb4 {[%clk 0:01:21.3]} 38. Nxb4 {[%clk 0:00:11.4]} 38... Bxb4 {[%clk 0:01:22.2]}
39. Kd3 {[%clk 0:00:11.5]} 39... Be7 {[%clk 0:01:20.2]} 40. Ne2 {[%clk 0:00:10]}
40... f5 {[%clk 0:01:19]} 41. Bf2 {[%clk 0:00:10.3]} 41... c5 {[%clk 0:01:14.4]}
42. e5 {[%clk 0:00:09.8]} 42... Bb7 {[%clk 0:01:14.3]} 43. Ke3 {[%clk
0:00:09.4]} 43... Ke6 {[%clk 0:01:13.9]} 44. Ng1 {[%clk 0:00:08.9]} 44... Be4
{[%clk 0:01:13.1]} 45. Ne2 {[%clk 0:00:08.4]} 45... Bc2 {[%clk 0:01:11.8]} 46.
Nc1 {[%clk 0:00:08.9]} 46... Bd8 {[%clk 0:01:10.1]} 47. Kd2 {[%clk 0:00:09.1]}
47... Be4 {[%clk 0:01:08.6]} 48. Nd3 {[%clk 0:00:09.6]} 48... Be7 {[%clk
0:00:56.3]} 49. Nc1 {[%clk 0:00:08.4]} 49... Bf8 {[%clk 0:00:54.1]} 50. Nd3
{[%clk 0:00:08.2]} 50... Kd7 {[%clk 0:00:53.5]} 51. Ke3 {[%clk 0:00:07.2]} 51...
Bh6 {[%clk 0:00:50.7]} 52. Bg3 {[%clk 0:00:07.7]} 52... Kc6 {[%clk 0:00:50.4]}
53. Kd2 {[%clk 0:00:07.7]} 53... a6 {[%clk 0:00:49.1]} 54. Nf2 {[%clk
0:00:07.6]} 54... Bg2 {[%clk 0:00:45.8]} 55. Nd3 {[%clk 0:00:07.4]} 55... b5
{[%clk 0:00:44.4]} 56. axb5+ {[%clk 0:00:07.3]} 56... axb5 {[%clk 0:00:45.3]}
57. Kc3 {[%clk 0:00:06.9]} 57... Bf8 {[%clk 0:00:38.6]} 58. Kd2 {[%clk
0:00:05.5]} 58... Be7 {[%clk 0:00:38.5]} 59. Kc3 {[%clk 0:00:05.4]} 59... Bd8
{[%clk 0:00:38.6]} 60. Bf2 {[%clk 0:00:05.4]} 60... Be7 {[%clk 0:00:32.6]} 61.
Kc2 {[%clk 0:00:05.1]} 61... Be4 {[%clk 0:00:28.7]} 62. Kc3 {[%clk 0:00:05.2]}
62... Bf8 {[%clk 0:00:26.4]} 63. Kc2 {[%clk 0:00:04.9]} 63... Bh6 {[%clk
0:00:20]} 64. Be3 {[%clk 0:00:05.1]} 64... bxc4 {[%clk 0:00:19.9]} 65. bxc4
{[%clk 0:00:04.3]} 65... Bf8 {[%clk 0:00:20.8]} 66. Kc3 {[%clk 0:00:04.6]} 66...
Be7 {[%clk 0:00:20.4]} 67. Kc2 {[%clk 0:00:04.7]} 67... Bxh4 {[%clk 0:00:19.3]}
68. Kc3 {[%clk 0:00:03.1]} 68... Be7 {[%clk 0:00:19.1]} 69. Nf2 {[%clk
0:00:03.3]} 69... Bf3 {[%clk 0:00:18.8]} 70. Nh3 {[%clk 0:00:03.5]} 70... Bg2
{[%clk 0:00:18.1]} 71. Ng5 {[%clk 0:00:02.4]} 71... h4 {[%clk 0:00:18.2]} 72.
Bg1 {[%clk 0:00:02.1]} 72... h3 {[%clk 0:00:15.5]} 73. Bh2 {[%clk 0:00:02.6]}
73... Bh1 {[%clk 0:00:13.7]} 74. Nxh3 {[%clk 0:00:02]} 74... Be4 {[%clk
0:00:12.2]} 75. Ng5 {[%clk 0:00:02.1]} 75... Bg2 {[%clk 0:00:12.7]} 76. Bg3
{[%clk 0:00:02.3]} 76... Bd8 {[%clk 0:00:13]} 77. Bh4 {[%clk 0:00:02.5]} 77...
Ba5+ {[%clk 0:00:13.4]} 78. Kd3 {[%clk 0:00:03.1]} 78... Bf1+ {[%clk 0:00:13]}
79. Ke3 {[%clk 0:00:02.5]} 79... Bxc4 {[%clk 0:00:13.9]} 80. Nh7 {[%clk
0:00:02.8]} 80... Bf7 {[%clk 0:00:13.3]} 81. Nf8 {[%clk 0:00:02.4]} 81... Kd5
{[%clk 0:00:11.7]} 82. Be7 {[%clk 0:00:01.5]} 82... c4 {[%clk 0:00:11.6]} 83.
Bd6 {[%clk 0:00:01.1]} 83... Bb6+ {[%clk 0:00:11.2]} 0-1

[Event "*** Titled Tuesday Blitz"]
[Site "Chess.com"]
[Date "2021.04.27"]
[Round "11"]
[White "Jospem"]
[Black "AlexPapasimakopoulos"]
[Result "1-0"]
[WhiteElo "2998"]
[BlackElo "2580"]
[TimeControl "180+1"]
[EndTime "12:06:56 PDT"]
[Termination "Jospem won by resignation"]

1. e4 {[%clk 0:03:00.9]} 1... e6 {[%clk 0:02:56.5]} 2. d4 {[%clk 0:03:01.1]}
2... d5 {[%clk 0:02:56.3]} 3. Nc3 {[%clk 0:03:02]} 3... Bb4 {[%clk 0:02:55.9]}
4. e5 {[%clk 0:03:02.2]} 4... b6 {[%clk 0:02:56.2]} 5. a3 {[%clk 0:03:02.8]}
5... Bf8 {[%clk 0:02:56.8]} 6. f4 {[%clk 0:02:59.8]} 6... Nh6 {[%clk 0:02:56.9]}
7. Nf3 {[%clk 0:02:59.6]} 7... Be7 {[%clk 0:02:57.5]} 8. Bd3 {[%clk 0:02:58.8]}
8... Ba6 {[%clk 0:02:57.9]} 9. Bxa6 {[%clk 0:02:57.7]} 9... Nxa6 {[%clk
0:02:58.8]} 10. O-O {[%clk 0:02:58.4]} 10... c5 {[%clk 0:02:58.8]} 11. Ne2
{[%clk 0:02:56.6]} 11... cxd4 {[%clk 0:02:59.1]} 12. Nexd4 {[%clk 0:02:57.3]}
12... Qd7 {[%clk 0:02:59.3]} 13. b4 {[%clk 0:02:54.4]} 13... g6 {[%clk
0:02:56.9]} 14. Qe2 {[%clk 0:02:51.6]} 14... Nc7 {[%clk 0:02:56.9]} 15. Be3
{[%clk 0:02:50.2]} 15... Nf5 {[%clk 0:02:54.4]} 16. Bf2 {[%clk 0:02:49.9]} 16...
Nxd4 {[%clk 0:02:53.2]} 17. Nxd4 {[%clk 0:02:49.8]} 17... h5 {[%clk 0:02:53.4]}
18. g3 {[%clk 0:02:44.1]} 18... O-O {[%clk 0:02:52.8]} 19. Kh1 {[%clk 0:02:37]}
19... Kg7 {[%clk 0:02:52.8]} 20. c3 {[%clk 0:02:33.5]} 20... a6 {[%clk 0:02:52]}
21. Rg1 {[%clk 0:02:32.4]} 21... Nb5 {[%clk 0:02:52.2]} 22. Qd3 {[%clk
0:02:28.4]} 22... Nxd4 {[%clk 0:02:51.9]} 23. Bxd4 {[%clk 0:02:26.6]} 23... Qb5
{[%clk 0:02:51.5]} 24. Qxb5 {[%clk 0:02:22]} 24... axb5 {[%clk 0:02:52.4]} 25.
Bxb6 {[%clk 0:02:21.6]} 25... Ra6 {[%clk 0:02:46.2]} 26. Be3 {[%clk 0:02:10.3]}
26... Rfa8 {[%clk 0:02:44.5]} 27. Bc1 {[%clk 0:02:07.6]} 27... Rc6 {[%clk
0:02:44.4]} 28. Bb2 {[%clk 0:02:07.2]} 28... Rc4 {[%clk 0:02:37.9]} 29. Rad1
{[%clk 0:02:05.7]} 29... Bd8 {[%clk 0:02:37.1]} 30. Kg2 {[%clk 0:02:03.6]} 30...
Bb6 {[%clk 0:02:37.2]} 31. Rge1 {[%clk 0:02:01.4]} 31... d4 {[%clk 0:02:35.7]}
32. Rd3 {[%clk 0:02:01.6]} 32... Rac8 {[%clk 0:02:34.9]} 33. Rc1 {[%clk
0:01:57.1]} 33... Kh6 {[%clk 0:02:21.2]} 34. Kf3 {[%clk 0:01:57.1]} 34... g5
{[%clk 0:02:20.5]} 35. fxg5+ {[%clk 0:01:50.2]} 35... Kxg5 {[%clk 0:02:21.4]}
36. Ke2 {[%clk 0:01:51]} 36... Kg4 {[%clk 0:02:20]} 37. Kd1 {[%clk 0:01:39.4]}
37... dxc3 {[%clk 0:02:18.5]} 38. Bxc3 {[%clk 0:01:37.6]} 38... Kh3 {[%clk
0:02:15.8]} 39. Rc2 {[%clk 0:01:37.4]} 39... Ba7 {[%clk 0:02:00.7]} 40. Kc1
{[%clk 0:01:20.7]} 40... Bb8 {[%clk 0:01:57.1]} 41. Re3 {[%clk 0:01:00.6]} 41...
Ba7 {[%clk 0:01:45.3]} 42. Rd3 {[%clk 0:00:58.6]} 42... Bg1 {[%clk 0:01:37.5]}
43. Kb2 {[%clk 0:00:56.6]} 43... Ba7 {[%clk 0:01:20.3]} 44. Kb3 {[%clk
0:00:48.3]} 44... Bb8 {[%clk 0:01:17.5]} 45. Re2 {[%clk 0:00:46.7]} 45... Ba7
{[%clk 0:01:14.7]} 46. Bb2 {[%clk 0:00:42.4]} 46... Kg4 {[%clk 0:01:09.8]} 47.
Rd7 {[%clk 0:00:37.4]} 47... R8c7 {[%clk 0:01:07.3]} 48. Rd3 {[%clk 0:00:27.5]}
48... Kh3 {[%clk 0:00:59.4]} 49. a4 {[%clk 0:00:26.5]} 49... bxa4+ {[%clk
0:00:59.8]} 50. Kxa4 {[%clk 0:00:27.4]} 50... Rc2 {[%clk 0:00:58.3]} 51. Rdd2
{[%clk 0:00:25]} 51... Rxd2 {[%clk 0:00:58.5]} 52. Rxd2 {[%clk 0:00:25.9]} 52...
Bg1 {[%clk 0:00:59]} 53. b5 {[%clk 0:00:19.3]} 53... Bxh2 {[%clk 0:00:58.7]} 54.
b6 {[%clk 0:00:17.8]} 54... Rb7 {[%clk 0:00:58.3]} 55. Kb5 {[%clk 0:00:18.4]}
55... Bg1 {[%clk 0:00:55.2]} 56. Bd4 {[%clk 0:00:18.4]} 56... Bxd4 {[%clk
0:00:55]} 57. Rxd4 {[%clk 0:00:19.3]} 57... Kxg3 {[%clk 0:00:52.7]} 58. Kc6
{[%clk 0:00:19.7]} 58... Rb8 {[%clk 0:00:52.6]} 59. Rd7 {[%clk 0:00:18.6]} 59...
h4 {[%clk 0:00:48.7]} 60. Rxf7 {[%clk 0:00:18.7]} 60... Rh8 {[%clk 0:00:48.5]}
61. b7 {[%clk 0:00:12]} 61... h3 {[%clk 0:00:48.5]} 62. Rg7+ {[%clk 0:00:12.1]}
62... Kf2 {[%clk 0:00:39.7]} 63. Rh7 {[%clk 0:00:04.8]} 63... Rxh7 {[%clk
0:00:39.6]} 64. b8=Q {[%clk 0:00:05.3]} 64... h2 {[%clk 0:00:39.3]} 65. Qb2+
{[%clk 0:00:04.9]} 65... Kg3 {[%clk 0:00:38.7]} 66. Qc3+ {[%clk 0:00:05]} 66...
Kg4 {[%clk 0:00:38.8]} 67. Qd4+ {[%clk 0:00:04.5]} 67... Kg5 {[%clk 0:00:37.7]}
68. Qe3+ {[%clk 0:00:04.6]} 68... Kg6 {[%clk 0:00:34.7]} 69. Qe4+ {[%clk
0:00:04.7]} 69... Kg7 {[%clk 0:00:35.2]} 70. Qg2+ {[%clk 0:00:03.6]} 70... Kf7
{[%clk 0:00:34.8]} 71. Qh1 {[%clk 0:00:04.3]} 71... Ke7 {[%clk 0:00:34.1]} 72.
Kc7 {[%clk 0:00:04.8]} 72... Rh3 {[%clk 0:00:29.8]} 73. Kb6 {[%clk 0:00:03.4]}
73... Rh4 {[%clk 0:00:29.5]} 74. Kc5 {[%clk 0:00:03.7]} 74... Kf7 {[%clk
0:00:26.9]} 75. Qb7+ {[%clk 0:00:04.2]} 75... Kg6 {[%clk 0:00:25.8]} 76. Qg2+
{[%clk 0:00:04.7]} 76... Kf5 {[%clk 0:00:25.9]} 77. Qh1 {[%clk 0:00:05.2]} 77...
Kxe5 {[%clk 0:00:25.7]} 78. Qe1+ {[%clk 0:00:05.4]} 78... Re4 {[%clk 0:00:23.6]}
79. Qg3+ {[%clk 0:00:05.5]} 79... Rf4 {[%clk 0:00:20.6]} 80. Qxh2 {[%clk
0:00:06.4]} 80... Kf5 {[%clk 0:00:20.1]} 81. Qh5+ {[%clk 0:00:04.8]} 81... Kf6
{[%clk 0:00:20]} 82. Qh6+ {[%clk 0:00:03.6]} 82... Ke5 {[%clk 0:00:20.3]} 83.
Qg7+ {[%clk 0:00:02.9]} 83... Rf6 {[%clk 0:00:19.8]} 84. Kc6 {[%clk 0:00:02.4]}
84... Kf5 {[%clk 0:00:19.5]} 85. Kd6 {[%clk 0:00:03.3]} 85... Rg6 {[%clk
0:00:19.4]} 86. Qf7+ {[%clk 0:00:03.4]} 86... Kg5 {[%clk 0:00:18.4]} 87. Qe7+
{[%clk 0:00:03.7]} 87... Kf5 {[%clk 0:00:18.3]} 88. Qf8+ {[%clk 0:00:04.2]}
88... Kg5 {[%clk 0:00:19]} 89. Qc8 {[%clk 0:00:05]} 89... Kf5 {[%clk 0:00:18.9]}
90. Kc5 {[%clk 0:00:05.5]} 90... Kf6 {[%clk 0:00:18.6]} 91. Kd4 {[%clk 0:00:05]}
91... Rg5 {[%clk 0:00:18.3]} 92. Ke4 {[%clk 0:00:05.3]} 92... Rf5 {[%clk
0:00:18.6]} 93. Qf8+ {[%clk 0:00:05]} 93... Kg6 {[%clk 0:00:18.7]} 94. Qe7
{[%clk 0:00:05.6]} 94... Rf6 {[%clk 0:00:18.2]} 95. Ke5 {[%clk 0:00:06.2]} 95...
Rf5+ {[%clk 0:00:18]} 96. Kxe6 {[%clk 0:00:06.7]} 96... Rf1 {[%clk 0:00:18.8]}
97. Qe8+ {[%clk 0:00:07.1]} 97... Kg7 {[%clk 0:00:19.4]} 98. Qd7+ {[%clk
0:00:06.9]} 98... Kg6 {[%clk 0:00:19.7]} 99. Qd3+ {[%clk 0:00:07.4]} 99... Rf5
{[%clk 0:00:17.1]} 100. Qxf5+ {[%clk 0:00:07.3]} 100... Kg7 {[%clk 0:00:15.1]}
101. Qf7+ {[%clk 0:00:06.5]} 101... Kh8 {[%clk 0:00:16]} 102. Qe7 {[%clk
0:00:06.6]} 102... Kg8 {[%clk 0:00:16.2]} 103. Kf6 {[%clk 0:00:07.5]} 103... Kh8
{[%clk 0:00:14.3]} 104. Kg6 {[%clk 0:00:08.4]} 104... Kg8 {[%clk 0:00:13.6]}
105. Qd7 {[%clk 0:00:08.8]} 1-0